[Event "ETCC Open 2023"]
[Site "Budva"]
[Date "2023.11.13"]
[Round "3.4"]
[White "Donchenko, Alexander"]
[Black "Ivic, Velimir"]
[Result "1-0"]
[ECO "A50"]
[WhiteElo "2664"]
[BlackElo "2557"]
[Annotator "TA"]
[PlyCount "65"]
[EventDate "2023.11.10"]
[EventType "team-tourn"]
[EventCountry "MNE"]
[SourceTitle "playchess.com"]
[Source "ChessBase"]
[SourceQuality "1"]
[WhiteTeam "Germany"]
[BlackTeam "Serbia"]
[WhiteTeamCountry "GER"]
[BlackTeamCountry "SRB"]
[TimeControl "40/5400+30:1800+30"]

{[%evp 9,65,2,27,18,14,2,0,18,0,0,0,6,3,-10,0,0,0,0,10,18,21,-16,-24,-23,-22,-10,-22,-17,0,0,0,0,0,0,0,0,38,41,102,99,119,111,97,110,111,72,133,130,735,731,701,675,1721,1560,29996,29997,29997,29998]} 1. d4 {[%emt 0:00:03]} Nf6 {[%emt 0:00:45]} 2. c4 {[%emt 0:00:12]} c6 {[%emt 0:00:33]} 3. Bf4 {[%emt 0:01:22]} Qb6 {[%emt 0:00:52]} 4. Qd2 {[%emt 0:00:20]} Ne4 {[%emt 0:00:35]} 5. Qc2 {[%emt 0:00:14]} d6 {[%emt 0:01:34]} 6. Nf3 {[%emt 0:01:21] [#] A50: Queen's Fianchetto Defence (1 d4 Nf6 2 c4 b6).} (6. Qxe4 $2 Qxb2 7. Nf3 g6 $19) 6... g6 $146 {[%emt 0:08:46]} ({Predecessor:} 6... Bf5 7. Qb3 Na6 8. g3 e5 9. Be3 Nb4 10. Na3 Qa5 11. O-O-O exd4 12. Bxd4 Be7 {0-1 Dreev,A (2606)-Lenderman,A (2572) Airthings Masters Div 3 W rapid 2023 (2.3)}) 7. Nbd2 {[%emt 0:01:33]} (7. Qxe4 $2 Qxb2 8. Qd3 Qxa1 $19) 7... Nxd2 {[%emt 0:02:48]} 8. Bxd2 {[%emt 0:00:56] The position is equal.} Bg7 {[%emt 0:00:10]} 9. Bc3 {[%emt 0:00:29]} O-O {[%emt 0:02:27]} 10. h4 {[%emt 0:00:26]} h5 {[%emt 0:08:48]} 11. e4 {[%emt 0:13:59]} Bg4 {[%emt 0:00:32]} 12. Qd2 {[%emt 0:03:57]} Bxf3 {[%emt 0:06:51]} 13. gxf3 {[%emt 0:00:08]} e5 {[%emt 0:04:54][%cal Re5d4] [#]} 14. c5 $1 {[%emt 0:14:49]} Qd8 {[%emt 0:00:42]} 15. Rd1 {[%emt 0:05:51] Black must now prevent dxe5.} exd4 {[%emt 0:05:12]} 16. Bxd4 {[%emt 0:00:19]} Bxd4 {[%emt 0:00:10]} 17. Qxd4 {[%emt 0:00:06] [#]} d5 {[%emt 0:00:15]} 18. Be2 {[%emt 0:11:46]} (18. exd5 cxd5 19. Qxd5 Qa5+ 20. Qd2 (20. Rd2 $2 Nc6 $19) 20... Re8+ 21. Be2 Qxc5 $17) 18... Na6 {[%emt 0:20:14]} 19. exd5 {[%emt 0:03:16]} cxd5 {[%emt 0:00:20]} 20. f4 {[%emt 0:07:31]} Qe7 {[%emt 0:05:47]} 21. Kf1 {[%emt 0:07:11]} Nxc5 {[%emt 0:03:37]} 22. f5 {[%emt 0:00:15] Against Ne6. And now Rg1 would win.} Kh7 {[%emt 0:08:16]} (22... gxf5 $2 23. Rg1+ (23. Qxd5 Rfe8 $16) (23. Qxd5 Rfe8 $16)) 23. Rg1 $1 {[%emt 0:03:37][%cal Oe2h5][%mdl 1024] Bxh5! would be deadly. White has compensation.} Ne4 {[%emt 0:06:30]} (23... gxf5 $2 24. Qg7#) (23... Rad8 $14) 24. f3 $16 {[%emt 0:11:38]} (24. Qxd5 $2 {is the wrong capture.} Rad8 25. f6 Qb4 $19) 24... Nc5 {[%emt 0:05:07]} 25. b4 {[%emt 0:02:34]} Rae8 {[%emt 0:01:30][%csl Ge8][%cal Re7e2]} 26. Bb5 {[%emt 0:02:02] The board is on fire.} Nd7 {[%emt 0:00:07]} 27. Qxd5 {[%emt 0:01:53] White is much more active.} a6 {[%emt 0:04:50]} 28. Bd3 $36 {[%emt 0:04:22][%cal Rf5g6][%mdl 2048] Black is under strong pressure.} Kh8 $2 {[%emt 0:00:44][%mdl 8192] Black cannot hold the game after this.} (28... Kh6 $16) 29. fxg6 $18 {[%emt 0:00:43]} ({Not} 29. Qxb7 Qe3 $14) 29... fxg6 {[%emt 0:01:24]} 30. Rxg6 {[%emt 0:00:02]} Qh7 {[%emt 0:00:39] [#] Black is weak on the light squares} 31. Rg8+ $3 {[%emt 0:00:45][%mdl 576] Deflection} Qxg8 {[%emt 0:00:29]} (31... Rxg8 32. Bxh7) 32. Qxh5+ {[%emt 0:00:03]} Kg7 {[%emt 0:00:11]} 33. Qg6+ {[%emt 0:00:04] Beautiful play by Donchenko!   Weighted Error Value: White=0.06 (flawless) /Black=0.28 (precise)} 1-0

[Event "ETCC Open 2023"]
[Site "Budva"]
[Date "2023.11.13"]
[Round "3.5"]
[White "Yilmaz, Mustafa"]
[Black "Kadric, Denis"]
[Result "1-0"]
[ECO "E95"]
[WhiteElo "2650"]
[BlackElo "2584"]
[Annotator "TA"]
[PlyCount "67"]
[EventDate "2023.11.10"]
[EventType "team-tourn"]
[EventCountry "MNE"]
[SourceTitle "playchess.com"]
[Source "ChessBase"]
[SourceQuality "1"]
[WhiteTeam "Turkey"]
[BlackTeam "Montenegro"]
[WhiteTeamCountry "TUR"]
[BlackTeamCountry "MNE"]
[TimeControl "40/5400+30:1800+30"]

{[%evp 15,67,46,48,40,60,51,37,42,38,18,28,22,33,12,25,0,25,14,31,25,56,74,121,126,108,93,126,111,202,162,163,166,212,205,204,146,171,172,244,233,292,293,300,293,387,374,413,418,431,428,1377,1356,1204,1187]} 1. d4 {[%emt 0:01:11]} Nf6 {[%emt 0:00:13]} 2. c4 {[%emt 0:00:12]} g6 {[%emt 0:00:22]} 3. Nc3 {[%emt 0:00:05]} Bg7 {[%emt 0:00:01]} 4. e4 {[%emt 0:00:06]} d6 {[%emt 0:00:01]} 5. Nf3 {[%emt 0:00:05]} O-O {[%emt 0:00:03]} 6. Be2 {[%emt 0:00:04]} e5 {[%emt 0:00:08]} 7. O-O {[%emt 0:00:07]} h6 {[%emt 0:00:09]} 8. Re1 $1 {[%emt 0:01:58] 8.Re1 scores better than 8.dxe5.} Nbd7 {[%emt 0:00:09][%cal Bb8d7,Bd7f8,Bf8e6][%mdl 32]} 9. Qc2 {[%emt 0:02:31] E95: King's Indian: Classical: 7...Nbd7 8 Re1.} Re8 {[%emt 0:00:43] 9...Nh7 is vanishing.} 10. dxe5 {[%emt 0:00:42]} dxe5 {[%emt 0:00:04]} 11. Be3 {[%emt 0:00:06] White is slightly better.} c6 {[%emt 0:00:41]} 12. Na4 {[%emt 0:03:46][%cal Bc3a4,Ba4b2,Bb2c4,Bc4d6][%mdl 32] [#]} Qe7 $146 {[%emt 0:02:00]} ({Predecessor:} 12... Qc7 13. c5 b5 14. cxb6 axb6 15. h3 Qb8 16. Red1 b5 17. Nc5 Nxc5 18. Bxc5 Be6 {1-0 Praggnanandhaa,R (2648)-Sindarov,J (2629) Olympiad-44 Chennai 2022 (10.3)}) 13. c5 {[%emt 0:06:54]} Nf8 {[%emt 0:00:39]} 14. Rad1 {[%emt 0:09:05]} Bg4 {[%emt 0:02:12]} 15. b4 {[%emt 0:06:35]} Bxf3 {[%emt 0:05:37]} 16. Bxf3 {[%emt 0:01:42]} Ne6 {[%emt 0:00:06][%cal Oe6d4]} 17. Nb2 {[%emt 0:04:55]} h5 {[%emt 0:15:46]} 18. Nc4 {[%emt 0:19:18]} Ng4 {[%emt 0:09:08]} (18... Red8 $142) 19. Bxg4 $16 {[%emt 0:00:05]} hxg4 {[%emt 0:00:01]} 20. Nd6 {[%emt 0:00:22]} Rf8 {[%emt 0:00:57]} 21. Qe2 {[%emt 0:00:31] White is more active.} f5 {[%emt 0:04:01]} (21... a5 $16) 22. Bc1 {[%emt 0:05:58]} a5 {[%emt 0:10:24]} 23. b5 {[%emt 0:05:02]} Kh7 {[%emt 0:17:44]} (23... f4 $142) 24. bxc6 {[%emt 0:09:08]} bxc6 {[%emt 0:00:15]} 25. Bb2 {[%emt 0:00:23] [#] Black must now prevent exf5.} f4 {[%emt 0:03:05]} 26. Qxg4 {[%emt 0:00:03] Threatens to win with Nc4.} Rab8 {[%emt 0:03:42]} (26... Rad8 {was necessary.} 27. Nc4 Rxd1 28. Rxd1 Nxc5) 27. Nc4 $18 {[%emt 0:02:27][%csl LRa5,LRe5]} Rxb2 {[%emt 0:12:50]} 28. Nxb2 {[%emt 0:02:09] And now Rd6 would win.} Nd4 {[%emt 0:00:02]} 29. Nd3 {[%emt 0:04:58]} f3 {[%emt 0:00:03]} 30. Kh1 {[%emt 0:01:25]} fxg2+ {[%emt 0:03:56]} 31. Qxg2 {[%emt 0:01:47]} Qe6 {[%emt 0:00:01]} 32. Re3 {[%emt 0:03:20] White is clearly winning.} Qxa2 {[%emt 0:00:04]} (32... Bh6 $142 33. Rh3 Kg7) 33. Rh3+ {[%emt 0:01:34][%mdl 64] [#] Deflection} Kg8 {[%emt 0:00:03]} 34. Qxg6 {[%emt 0:00:39] Weighted Error Value: White=0.09 (flawless) /Black=0.31} 1-0

[Event "ETCC Open 2023"]
[Site "Budva"]
[Date "2023.11.13"]
[Round "3.6"]
[White "Djukic, Nikola"]
[Black "Sanal, Vahap"]
[Result "1/2-1/2"]
[ECO "C88"]
[WhiteElo "2518"]
[BlackElo "2608"]
[Annotator "TA"]
[PlyCount "150"]
[EventDate "2023.11.10"]
[EventType "team-tourn"]
[EventCountry "MNE"]
[SourceTitle "playchess.com"]
[Source "ChessBase"]
[SourceQuality "1"]
[WhiteTeam "Montenegro"]
[BlackTeam "Turkey"]
[WhiteTeamCountry "MNE"]
[BlackTeamCountry "TUR"]
[TimeControl "40/5400+30:1800+30"]

{[%evp 25,150,0,25,6,5,7,14,8,8,17,19,20,18,11,14,9,16,16,14,14,26,29,16,10,23,12,10,0,24,17,19,0,0,0,40,0,0,0,0,0,0,-16,0,-7,36,41,55,39,73,73,71,62,62,71,71,72,68,54,96,95,96,95,121,118,116,49,72,56,66,50,51,57,75,55,67,70,70,51,51,51,56,35,37,8,8,8,8,8,8,0,0,0,0,0,0,0,0,0,0,0,0,0,0,0,0,0,0,0,0,0,0,0,0,0,0,0,0,0,0,-8,-8,-8,-8,-8,-8,-8,-8]} 1. e4 {[%emt 0:06:54]} e5 {[%emt 0:00:09]} 2. Nf3 {[%emt 0:00:05]} Nc6 {[%emt 0:00:09]} 3. Bb5 {[%emt 0:00:05]} a6 {[%emt 0:00:18]} 4. Ba4 {[%emt 0:00:04]} Nf6 {[%emt 0:00:08]} 5. O-O {[%emt 0:00:05]} Be7 {[%emt 0:00:20]} 6. Re1 {[%emt 0:00:05]} b5 {[%emt 0:00:07]} 7. Bb3 {[%emt 0:00:04]} O-O {[%emt 0:00:16]} 8. a4 {[%emt 0:00:03]} Bb7 {[%emt 0:00:55]} 9. d3 {[%emt 0:00:05]} d6 {[%emt 0:00:14]} 10. Nbd2 {[%emt 0:00:06]} Nd7 {[%emt 0:02:58]} 11. axb5 {[%emt 0:08:02]} axb5 {[%emt 0:00:07]} 12. Rxa8 {[%emt 0:00:06]} Qxa8 {[%emt 0:00:05]} 13. c3 {[%emt 0:00:09]} Nc5 {[%emt 0:00:22]} 14. Bc2 {[%emt 0:00:09] C88: Closed Ruy Lopez: Anti-Marshall Systems.} b4 {[%emt 0:00:03]} 15. d4 {[%emt 0:00:30]} bxc3 {[%emt 0:01:42]} 16. bxc3 {[%emt 0:00:18]} Nd7 {[%emt 0:00:57]} 17. Nc4 {[%emt 0:07:12]} exd4 {[%emt 0:08:54]} 18. cxd4 {[%emt 0:02:45]} Nb4 {[%emt 0:00:36]} 19. Bb1 {[%emt 0:15:00]} d5 $1 {[%emt 0:02:17]} 20. exd5 {[%emt 0:02:12]} Nxd5 {[%emt 0:00:22]} 21. Bd2 {[%emt 0:19:00] [#]} Bb4 $146 {[%emt 0:18:30]} ({Predecessor:} 21... N7f6 22. Na5 Bc8 23. Qc2 Bd6 24. Nc4 {½-½ Amann,H (2406)-Maetzig,R (2340) GER-ch50 final email 2020}) 22. Nce5 {[%emt 0:15:05]} N7f6 {[%emt 0:02:15]} 23. Bxb4 {[%emt 0:01:43]} Nxb4 {[%emt 0:00:07]} 24. Qd2 {[%emt 0:00:23]} Nbd5 {[%emt 0:01:43]} 25. h3 {[%emt 0:10:44]} Qa3 {[%emt 0:18:24]} 26. Ba2 {[%emt 0:02:18]} Ra8 {[%emt 0:02:01]} 27. Bc4 {[%emt 0:00:09]} h6 {[%emt 0:00:14]} 28. Rb1 {[%emt 0:04:17]} Bc8 {[%emt 0:00:58]} 29. Qc1 {[%emt 0:01:00]} Qf8 {[%emt 0:05:34]} 30. Ra1 {[%emt 0:00:52]} Be6 {[%emt 0:02:00]} 31. Rxa8 {[%emt 0:01:49]} Qxa8 {[%emt 0:00:03]} 32. Bf1 {[%emt 0:01:33]} Ne4 {[%emt 0:02:45]} 33. Qc6 {[%emt 0:01:17]} Qa2 {[%emt 0:01:49]} (33... Qxc6 {simplifies} 34. Nxc6 Nec3 35. Nfe5 Kf8) 34. Nd3 {[%emt 0:02:44]} Ndc3 {[%emt 0:14:59]} 35. Qxc7 {[%emt 0:00:10]} Qb1 {[%emt 0:00:05] [#] And now ...Ne2+ would win.} 36. Nfe1 {[%emt 0:00:28][%cal Bf3e1,Be1c2,Bc2e3][%mdl 32] Black must now prevent f3.} (36. Nf4 {with more complications.} Ba2 37. Nh5 g6 38. Nf6+) 36... Kh7 {[%emt 0:08:35]} 37. f3 {[%emt 0:00:41]} Nd5 {[%emt 0:03:08]} 38. Qc2 {[%emt 0:00:16]} Qxc2 {[%emt 0:01:00]} 39. Nxc2 {[%emt 0:00:03]} Ng3 {[%emt 0:00:08]} 40. Ndb4 {[%emt 0:00:44]} Nf4 {[%emt 0:01:10]} 41. Kf2 {[%emt 0:30:52]} Nh1+ {[%emt 0:07:50]} 42. Ke1 {[%emt 0:00:00]} Ng3 {[%emt 0:00:43]} 43. Ne3 {[%emt 0:00:00]} Bd7 {[%emt 0:04:47]} 44. Bd3+ {[%emt 0:00:00]} Kg8 {[%emt 0:01:17]} 45. Kf2 {[%emt 0:00:00]} (45. Kd2 $16) 45... Nh1+ $14 {[%emt 0:00:09]} 46. Kg1 {[%emt 0:00:00]} Ng3 {[%emt 0:00:08]} 47. Kh2 {[%emt 0:00:00]} Nge2 {[%emt 0:04:32]} 48. d5 {[%emt 0:00:00]} Nd4 {[%emt 0:05:07] Against Bf5} 49. Kg3 {[%emt 0:00:00]} g5 {[%emt 0:00:30]} 50. Kf2 {[%emt 0:00:00]} Kg7 {[%emt 0:00:16]} 51. Bf1 {[%emt 0:00:00]} Kf6 {[%emt 0:03:05]} 52. g3 {[%emt 0:00:00]} Ng6 {[%emt 0:01:29]} ({Less strong is} 52... Nxh3+ 53. Bxh3 Bxh3 54. g4 $16) 53. Nc4 {[%emt 0:00:00]} Bb5 $1 {[%emt 0:05:07]} 54. Nd2 {[%emt 0:00:00]} Bxf1 {[%emt 0:00:12] The position is equal.} 55. Kxf1 $11 {[%emt 0:00:00][%mdl 4096] Endgame KNN-KNN} Nf5 {[%emt 0:00:25]} 56. Kf2 {[%emt 0:00:00] Nc6 would be deadly.} Ke5 $1 {[%emt 0:01:14]} 57. g4 {[%emt 0:07:09]} Nd6 {[%emt 0:00:43] Repels Nc4+} 58. Ke3 {[%emt 0:00:30]} Nf4 {[%emt 0:00:50]} 59. Ne4 {[%emt 0:01:14]} Nc4+ {[%emt 0:00:26]} 60. Kf2 {[%emt 0:00:35]} Nxh3+ {[%emt 0:00:04]} 61. Kg3 {[%emt 0:00:11]} Nf4 {[%emt 0:00:16]} 62. Nc6+ {[%emt 0:00:17]} Kxd5 {[%emt 0:00:14]} 63. Ne7+ {[%emt 0:00:05]} Ke5 {[%emt 0:01:28]} 64. Nf5 {[%emt 0:00:03] Dodges Ne3} Nh5+ {[%emt 0:01:21][%mdl 64] [#] Deflection} 65. Kf2 {[%emt 0:00:21][%cal Of5h6]} Nf6 {[%emt 0:00:08]} 66. Nxf6 {[%emt 0:00:57]} Kxf6 {[%emt 0:00:02]} 67. Nxh6 {[%emt 0:00:14] KN-KN} Nd6 {[%emt 0:00:05]} 68. Ng8+ {[%emt 0:00:15]} Ke6 {[%emt 0:00:10]} 69. Nh6 {[%emt 0:00:08]} f6 {[%emt 0:02:47]} 70. Kg3 {[%emt 0:00:29]} Ke5 {[%emt 0:00:13]} 71. Ng8 {[%emt 0:00:07]} Ke6 {[%emt 0:00:19]} 72. Nxf6 {[%emt 0:00:25]} Kxf6 {[%emt 0:00:04]} 73. f4 {[%emt 0:00:04]} gxf4+ {[%emt 0:00:08]} 74. Kxf4 {[%emt 0:00:04]} Nf7 {[%emt 0:00:02]} 75. g5+ {[%emt 0:00:06]} Nxg5 {[%emt 0:00:04] Weighted Error Value: White=0.07 (flawless) /Black=0.08 (flawless)} 1/2-1/2

[Event "ETCC Open 2023"]
[Site "Budva"]
[Date "2023.11.13"]
[Round "3.7"]
[White "Can, Emre"]
[Black "Petrov, Nikita"]
[Result "1-0"]
[ECO "E04"]
[WhiteElo "2566"]
[BlackElo "2567"]
[Annotator "RC"]
[PlyCount "79"]
[EventDate "2023.11.10"]
[EventType "team-tourn"]
[EventCountry "MNE"]
[SourceTitle "playchess.com"]
[Source "ChessBase"]
[SourceQuality "1"]
[WhiteTeam "Turkey"]
[BlackTeam "Montenegro"]
[WhiteTeamCountry "TUR"]
[BlackTeamCountry "MNE"]
[TimeControl "40/5400+30:1800+30"]

1. d4 {[%emt 0:00:16]} Nf6 {[%emt 0:00:28]} 2. c4 {[%emt 0:00:33]} e6 {[%emt 0:00:15]} 3. Nf3 {[%emt 0:00:13]} d5 {[%emt 0:00:33]} 4. g3 {[%emt 0:00:33]} dxc4 {[%emt 0:01:02]} 5. Bg2 {[%emt 0:00:26]} Nc6 {[%emt 0:00:39]} 6. O-O {[%emt 0:02:19]} Rb8 {[%emt 0:01:07]} 7. Nc3 {[%emt 0:00:30]} a6 {[%emt 0:01:47]} 8. e4 {[%emt 0:02:13]} Be7 {[%emt 0:01:35]} 9. d5 {[%emt 0:02:38]} exd5 {[%emt 0:00:52]} 10. exd5 {[%emt 0:00:22]} Nb4 {[%emt 0:00:53]} 11. Ne5 {[%emt 0:00:37]} Bf5 {[%emt 0:01:44]} 12. Nxc4 {[%emt 0:00:37]} O-O {[%emt 0:02:51]} 13. a3 {[%emt 0:04:19]} Nd3 {[%emt 0:00:36]} 14. Be3 {[%emt 0:05:54]} Re8 {[%emt 0:04:39]} 15. b4 {[%emt 0:01:05]} Bd6 {[%emt 0:28:22]} 16. Ba7 {[%emt 0:05:37]} Rc8 {[%emt 0:05:36]} 17. Bd4 {[%emt 0:03:41]} Ne5 {[%emt 0:18:03]} 18. Na5 {[%emt 0:14:09]} b6 {[%emt 0:00:46]} 19. Nb7 {[%emt 0:12:32]} Qd7 {[%emt 0:00:24]} 20. Nxd6 {[%emt 0:00:07]} Qxd6 {[%emt 0:02:06]} 21. h3 {[%emt 0:02:12]} Nd3 {[%emt 0:05:47]} 22. Qf3 {[%emt 0:06:05]} c5 {[%emt 0:09:06]} 23. Qxf5 {[%emt 0:05:32]} cxd4 {[%emt 0:00:04]} 24. Qxd3 {[%emt 0:00:23]} dxc3 {[%emt 0:00:07]} 25. Rac1 {[%emt 0:00:13]} Qe5 {[%emt 0:02:34]} 26. Rc2 {[%emt 0:00:29]} g6 {[%emt 0:05:19]} 27. Rfc1 {[%emt 0:00:21]} Rcd8 {[%emt 0:02:50]} 28. Qxc3 {[%emt 0:07:39]} Qf5 {[%emt 0:02:12]} 29. Qc6 {[%emt 0:08:55]} Nxd5 {[%emt 0:00:30]} 30. Bxd5 {[%emt 0:00:17]} Qxd5 {[%emt 0:00:03]} 31. Qxb6 {[%emt 0:00:27]} Qf3 {[%emt 0:00:36]} 32. Rc3 {[%emt 0:04:08]} Rd1+ {[%emt 0:02:09]} 33. Rxd1 {[%emt 0:00:06]} Qxd1+ {[%emt 0:00:02]} 34. Kh2 {[%emt 0:00:13]} Re1 {[%emt 0:00:46]} 35. Qb7 {[%emt 0:02:49]} Qd4 {[%emt 0:01:05]} 36. Qf3 {[%emt 0:00:49]} Rf1 {[%emt 0:00:22]} 37. Rc8+ {[%emt 0:01:03]} Kg7 {[%emt 0:00:05]} 38. Kg2 {[%emt 0:00:13]} Qa1 {[%emt 0:01:03]} 39. Rc7 {[%emt 0:01:22]} Rg1+ {[%emt 0:00:22]} 40. Kh2 {[%emt 0:00:05]} 1-0

[Event "ETCC Open 2023"]
[Site "Budva"]
[Date "2023.11.13"]
[Round "3.8"]
[White "Draskovic, Luka"]
[Black "Ali Marandi, Cemil Can"]
[Result "1/2-1/2"]
[ECO "C55"]
[WhiteElo "2476"]
[BlackElo "2544"]
[Annotator "RC"]
[PlyCount "68"]
[EventDate "2023.11.10"]
[EventType "team-tourn"]
[EventCountry "MNE"]
[SourceTitle "playchess.com"]
[Source "ChessBase"]
[SourceQuality "1"]
[WhiteTeam "Montenegro"]
[BlackTeam "Turkey"]
[WhiteTeamCountry "MNE"]
[BlackTeamCountry "TUR"]
[TimeControl "40/5400+30:1800+30"]

1. e4 {[%emt 0:00:08]} e5 {[%emt 0:00:16]} 2. Nf3 {[%emt 0:00:05]} Nc6 {[%emt 0:00:09]} 3. Bc4 {[%emt 0:00:37]} Nf6 {[%emt 0:00:16]} 4. d3 {[%emt 0:00:59]} Be7 {[%emt 0:00:38]} 5. O-O {[%emt 0:01:06]} O-O {[%emt 0:00:09]} 6. Nc3 {[%emt 0:02:33]} d6 {[%emt 0:00:20]} 7. a4 {[%emt 0:00:59]} Bg4 {[%emt 0:03:08]} 8. h3 {[%emt 0:00:57]} Bh5 {[%emt 0:00:06]} 9. Be3 {[%emt 0:00:59]} Qc8 {[%emt 0:00:08]} 10. a5 {[%emt 0:04:38]} Kh8 {[%emt 0:00:25]} 11. a6 {[%emt 0:14:30]} Nb4 {[%emt 0:00:14]} 12. axb7 {[%emt 0:09:09]} Qxb7 {[%emt 0:01:01]} 13. Bb3 {[%emt 0:12:25]} a5 {[%emt 0:00:26]} 14. Bg5 {[%emt 0:06:31]} c6 {[%emt 0:01:23]} 15. Bxf6 {[%emt 0:06:47]} Bxf6 {[%emt 0:00:07]} 16. g4 {[%emt 0:00:35]} Bg6 {[%emt 0:00:07]} 17. Ne2 {[%emt 0:00:09]} Bd8 {[%emt 0:20:36]} 18. Ng3 {[%emt 0:00:27]} Na6 {[%emt 0:02:34]} 19. h4 {[%emt 0:11:52]} h6 {[%emt 0:02:43]} 20. g5 {[%emt 0:06:19]} h5 {[%emt 0:02:43]} 21. d4 {[%emt 0:03:35]} f6 {[%emt 0:04:19]} 22. gxf6 {[%emt 0:02:50]} Bxf6 {[%emt 0:09:39]} 23. Rxa5 {[%emt 0:00:48]} Qb6 {[%emt 0:03:15]} 24. Ra4 {[%emt 0:02:47]} exd4 {[%emt 0:04:29]} 25. Nxd4 {[%emt 0:00:08]} Nc5 {[%emt 0:07:16]} 26. Rxa8 {[%emt 0:00:07]} Rxa8 {[%emt 0:00:03]} 27. Ndf5 {[%emt 0:01:58]} Nxb3 {[%emt 0:02:11]} 28. cxb3 {[%emt 0:00:10]} d5 {[%emt 0:09:30]} 29. exd5 {[%emt 0:01:20]} cxd5 {[%emt 0:01:15]} 30. Qxd5 {[%emt 0:01:51]} Ra5 {[%emt 0:00:55]} 31. Qf3 {[%emt 0:08:41]} Qe6 {[%emt 0:02:55]} 32. b4 {[%emt 0:00:00]} Rb5 {[%emt 0:02:40]} 33. Ra1 {[%emt 0:00:00]} Kh7 {[%emt 0:01:23]} 34. Ra5 {[%emt 0:00:00]} Qe1+ {[%emt 0:04:22]} 1/2-1/2